[Event "10th Norway Chess 2022"]
[Site "Stavanger"]
[Date "2022.06.09"]
[Round "8.1"]
[White "So, Wesley"]
[Black "Topalov, Veselin"]
[Result "1/2-1/2"]
[ECO "C67"]
[WhiteElo "2766"]
[BlackElo "2730"]
[Annotator "TA"]
[PlyCount "63"]
[EventDate "2022.05.30"]
[EventType "tourn"]
[EventCountry "NOR"]
[SourceTitle "playchess.com"]
[Source "ChessBase"]
[SourceQuality "1"]
[TimeControl "40/7200:0"]

{[%evp 18,63,22,24,20,14,14,13,19,3,13,5,5,4,14,4,18,15,32,14,20,0,0,0,0,0,0,0,0,0,0,0,0,0,0,0,0,0,0,0,0,0,0,0,0,0,0,0]} 1. e4 {[%emt 0:00:07]} e5 {[%emt 0:00:05]} 2. Nf3 {[%emt 0:00:19]} Nc6 {[%emt 0:00:05]} 3. Bb5 {[%emt 0:01:48]} Nf6 {[%emt 0:00:10]} 4. O-O {[%emt 0:00:17][%cal Bh1f1,Bf1e1,Be1e5][%mdl 32]} Nxe4 {[%emt 0:00:05]} 5. Re1 {[%emt 0:00:06]} Nd6 {[%emt 0:00:04]} 6. Nxe5 {[%emt 0:00:20]} Be7 {[%emt 0:00:11]} 7. Bf1 {[%emt 0:00:07]} Nxe5 {[%emt 0:00:05]} 8. Rxe5 {[%emt 0:00:04]} O-O {[%emt 0:00:09]} 9. d4 {[%emt 0:00:04]} Bf6 {[%emt 0:00:14]} 10. Re1 {[%emt 0:00:06]} Re8 {[%emt 0:00:18] C67: Ruy Lopez: Berlin Defence: 4 0-0 Nxe4.} 11. c3 {[%emt 0:00:09]} Rxe1 {[%emt 0:00:16]} 12. Qxe1 {[%emt 0:00:05]} Ne8 {[%emt 0:00:24]} 13. a4 {[%emt 0:00:24]} a5 {[%emt 0:00:27]} 14. Bf4 {[%emt 0:01:13]} d5 {[%emt 0:00:47]} 15. Nd2 {[%emt 0:00:06] [#]} c6 $146 {[%emt 0:01:38]} ({Predecessor:} 15... Nd6 16. Nb3 Bf5 17. Nc5 b6 18. Nd3 Qf8 19. Qe3 Nc4 20. Qf3 Bxd3 21. Bxd3 Nxb2 {1-0 (33) Kovalev,V (2648)-Sadhwani,R (2545) Chess.com INT 2020}) 16. h3 {[%emt 0:04:09]} g6 {[%emt 0:04:59]} 17. Nf3 {[%emt 0:07:59]} Nd6 {[%emt 0:03:18]} 18. Bd3 {[%emt 0:03:57]} Bf5 {[%emt 0:04:13] The position is equal.} 19. Bxf5 {[%emt 0:00:07]} Nxf5 {[%emt 0:00:06]} 20. Qe2 {[%emt 0:00:04]} Qe7 {[%emt 0:07:40]} 21. Re1 {[%emt 0:01:43]} Qxe2 {[%emt 0:00:32]} 22. Rxe2 {[%emt 0:00:07]} Ng7 {[%emt 0:00:19]} 23. Be5 {[%emt 0:00:54]} Bxe5 {[%emt 0:00:55]} 24. Nxe5 $11 {[%emt 0:00:18][%mdl 4096] Endgame KRN-KRN} f6 {[%emt 0:04:42]} 25. Nd3 {[%emt 0:03:02] Strongly threatening Re7.} Kf7 {[%emt 0:00:51] Prevents Re7+.} 26. g4 {[%emt 0:01:18]} Ne6 {[%emt 0:05:23]} 27. Kg2 {[%emt 0:01:30]} h5 {[%emt 0:03:29]} 28. Re3 {[%emt 0:06:59]} hxg4 {[%emt 0:09:52]} 29. hxg4 {[%emt 0:00:09]} g5 {[%emt 0:00:42]} 30. Rh3 {[%emt 0:00:58]} Kg6 {[%emt 0:00:21]} 31. Re3 {[%emt 0:00:05]} Kf7 {[%emt 0:00:06]} 32. Rh3 {[%emt 0:00:21] An uneventful encounter.  Weighted Error Value: White=0.04 (flawless) /Black=0.03 (flawless)} 1/2-1/2

[Event "10th Norway Chess 2022"]
[Site "Stavanger"]
[Date "2022.06.09"]
[Round "8.1"]
[White "Giri, Anish"]
[Black "Tari, Aryan"]
[Result "1-0"]
[ECO "D02"]
[WhiteElo "2761"]
[BlackElo "2654"]
[Annotator "TA"]
[PlyCount "121"]
[EventDate "2022.05.30"]
[EventType "tourn"]
[EventCountry "NOR"]
[SourceTitle "playchess.com"]
[Source "ChessBase"]
[SourceQuality "1"]
[TimeControl "40/7200:0"]

{[%evp 11,121,7,10,22,14,15,31,0,0,3,13,23,18,17,54,47,39,31,39,46,54,45,38,42,56,51,50,54,83,59,81,62,71,37,102,96,97,45,126,122,147,148,142,133,129,124,106,105,135,124,137,147,169,142,156,155,153,153,146,134,144,0,144,119,204,152,189,119,131,99,134,99,158,0,0,0,0,0,0,0,0,-18,-16,-117,-121,-94,0,0,0,0,0,0,0,0,0,0,0,0,0,0,0,0,0,0,706,691,692,336,29976,29976,12841,6211]} 1. Nf3 {[%emt 0:00:04]} d5 {[%emt 0:00:35]} 2. d4 {[%emt 0:00:33]} Nf6 {[%emt 0:00:28]} 3. Bf4 {[%emt 0:00:15]} c5 {[%emt 0:01:31]} 4. e3 {[%emt 0:00:09]} Nc6 {[%emt 0:00:15]} 5. Nbd2 {[%emt 0:00:08]} Bg4 {[%emt 0:03:33]} 6. c3 {[%emt 0:03:29]} e6 {[%emt 0:00:17]} 7. Qb3 {[%emt 0:01:41] D02: 1 d4 d5 2 Nf3 sidelines, including 2...Nf6 3 g3 and 2...Nf6 3 Bf4.} Qc8 {[%emt 0:01:20]} 8. h3 {[%emt 0:00:21]} Bh5 {[%emt 0:00:33]} 9. Be2 $1 {[%emt 0:00:24][%mdl 4] White is slightly better. is recently more successful than 9.g4.} Be7 {[%emt 0:00:32]} 10. dxc5 {[%emt 0:01:52]} Bxc5 {[%emt 0:13:20] [#]} 11. g4 $146 {[%emt 0:03:03]} ({Predecessor:} 11. c4 O-O 12. O-O Rd8 13. cxd5 Nxd5 14. Bg5 Be7 15. Bxe7 Ndxe7 16. Rfd1 Qc7 17. Rac1 {0-1 (69) Pakleza,Z (2501)-Hovhannisyan,R (2642) Tornelo INT 2020}) 11... Bg6 {[%emt 0:00:18]} 12. Nh4 {[%emt 0:09:26]} Qd7 {[%emt 0:15:17]} 13. Nxg6 {[%emt 0:03:58]} hxg6 {[%emt 0:01:10]} 14. g5 $36 {[%emt 0:03:23][%mdl 2048] White is more active.} Nh5 {[%emt 0:10:53]} (14... Ne4 15. Nxe4 dxe4 16. Rd1 $16) 15. Bh2 {[%emt 0:00:17]} a6 {[%emt 0:02:26]} 16. O-O-O {[%emt 0:03:26]} b5 {[%emt 0:04:08] Inhibits c4.} 17. Kb1 {[%emt 0:03:02][%cal Oc3c4]} Bd6 {[%emt 0:14:00]} 18. Bxd6 {[%emt 0:03:08]} Qxd6 {[%emt 0:00:16]} 19. c4 {[%emt 0:11:24] cxd5 is the strong threat.} O-O {[%emt 0:21:38]} 20. cxd5 {[%emt 0:02:31]} (20. cxb5 $6 axb5 21. Rc1 Na5 22. Qxb5 Rfb8 $11) 20... exd5 {[%emt 0:00:02]} 21. Nf3 {[%emt 0:07:26] Inhibits d4.} (21. Ne4 $6 Qe7 22. Qxd5 Nb4 $11) 21... Rad8 {[%emt 0:00:25][%cal Od5d4]} 22. h4 {[%emt 0:07:46]} Rfe8 {[%emt 0:01:00]} (22... Qe7 $14) 23. Nd4 $16 {[%emt 0:01:34]} Ne5 {[%emt 0:02:19]} 24. Qa3 {[%emt 0:02:30]} (24. Rc1 $16) 24... Qb6 {[%emt 0:00:52]} (24... Qxa3 $14 25. bxa3 Nc4) 25. b3 {[%emt 0:00:50]} Rc8 {[%emt 0:02:15]} 26. Qb2 {[%emt 0:06:08]} Qd6 {[%emt 0:02:06]} 27. Rc1 {[%emt 0:01:34]} Qd7 {[%emt 0:02:08]} 28. Rxc8 {[%emt 0:01:26]} Rxc8 {[%emt 0:01:08]} 29. Qd2 {[%emt 0:01:02]} Ng4 {[%emt 0:03:02]} 30. Bf1 {[%emt 0:06:25][%cal Be2f1,Bf1g2,Bg2f3][%mdl 32]} Qe7 {[%emt 0:01:24] Threatens to win with ...Qe4+.} 31. Bg2 {[%emt 0:00:34] Against Qe4+} Qe5 {[%emt 0:00:15]} 32. a3 {[%emt 0:07:54]} Kh7 {[%emt 0:00:21]} 33. Ka2 $1 {[%emt 0:00:05] aiming for Bh3.} f5 {[%emt 0:00:51]} 34. Bf3 {[%emt 0:00:32]} Qd6 {[%emt 0:02:16]} 35. Bd1 {[%emt 0:01:41]} Re8 {[%emt 0:00:18]} 36. Bf3 {[%emt 0:00:52]} Rc8 $1 {[%emt 0:00:44]} 37. Qe2 {[%emt 0:00:55]} Rf8 {[%emt 0:00:01]} (37... Qe5 $16) 38. b4 {[%emt 0:01:03]} Qe5 {[%emt 0:00:38]} 39. Qd2 {[%emt 0:00:49]} (39. Qc2 $18) 39... Rc8 {[%emt 0:00:32]} 40. Nb3 {[%emt 0:01:43]} Rc4 {[%emt 0:00:52][%cal Of5f4]} 41. Rd1 {[%emt 2:02:17]} (41. Bxd5 Nxf2 $1 42. Bxc4 bxc4 $17) 41... f4 {[%emt 2:00:35]} (41... Rc8 $142) 42. exf4 $2 {[%emt 0:03:05]} (42. Bxg4 $6 fxe3 43. Qb2 (43. fxe3 Rxg4 44. Qxd5 Qxe3 $17) (43. Qe2 Nf4 $14) 43... Qxb2+ 44. Kxb2 Rxg4 45. fxe3 Rxh4 $16) (42. Na5 $1 $16 {[%cal Ra5c4]} fxe3 43. Nxc4 $1 dxc4 44. fxe3) 42... Rxf4 $11 {[%emt 0:00:31]} 43. Nd4 {[%emt 0:00:02]} Qc7 {[%emt 0:00:34]} 44. Kb1 {[%emt 0:01:38] Hoping for Ne6.} ({Not} 44. Bxd5 $2 Rxf2 45. Ne6 (45. Ne2 $2 Nf4 $19) 45... Qf7 $19) 44... Qf7 {[%emt 0:00:00] Prevents Ne6.} 45. Qe2 {[%emt 0:02:02]} Nh2 {[%emt 0:00:00][%csl LRf3,LRh4][%cal Rh2f3]} 46. Bxh5 {[%emt 0:00:02]} gxh5 {[%emt 0:00:00]} 47. Qd3+ {[%emt 0:00:06]} (47. Qc2+ $1 $11 Qg6 48. Ne6 Qxc2+ 49. Kxc2 Rxf2+ 50. Kd3) 47... Qg6 $1 $17 {[%emt 0:00:10]} 48. Ne6 {[%emt 0:00:21][%cal Bd4e6,Be6c7,Bc7e8,Be8f6][%mdl 32]} Rxf2 {[%emt 0:00:46]} (48... Rf5 $1 $17 49. Nc5 Nf3 50. Nxa6 Nxh4) 49. Qxg6+ $11 {[%emt 0:00:00]} Kxg6 {[%emt 0:00:00]} 50. Rxd5 $17 {[%emt 0:00:00][%mdl 4096] Endgame KRN-KRN} Kf7 {[%emt 0:00:04]} 51. Nc7 {[%emt 0:01:15]} Nf3 {[%emt 0:00:03]} 52. Rd7+ {[%emt 0:00:00]} Kg6 {[%emt 0:00:00]} 53. Ne8 {[%emt 0:00:22]} Re2 {[%emt 0:00:56]} (53... Nxh4 $2 54. Rxg7+ Kf5 55. Rf7+ Kxg5 56. Rxf2 $18) 54. Rxg7+ {[%emt 0:00:19]} Kf5 {[%emt 0:00:00]} 55. Rf7+ {[%emt 0:00:22]} Kg4 {[%emt 0:00:00]} 56. Nf6+ {[%emt 0:00:00]} Kxh4 {[%emt 0:00:00]} 57. g6 {[%emt 0:00:00]} Nd2+ $2 {[%emt 0:00:00][%mdl 8192] [#]} (57... Re1+ $11 58. Kc2 Re2+ 59. Kd1 Re1+ 60. Kc2 Re2+ 61. Kd1 Re1+ 62. Kc2) 58. Kc1 $1 $18 {[%emt 0:00:22]} Ne4 {[%emt 0:00:00]} 59. Re7 {[%emt 0:00:37]} (59. Nxe4 $142 Rxe4 60. g7 Re1+ 61. Kd2) 59... Nc3 $2 {[%emt 0:00:06] [#]} (59... Rg2 $18) 60. Rxe2 $1 {[%emt 0:00:14]} ({Stronger than} 60. g7 Na2+ 61. Kb1 Nc3+ 62. Kc1 Na2+ 63. Kd1 Nc3+ 64. Kc1 $11) 60... Nxe2+ {[%emt 0:00:00]} 61. Kd2 {[%emt 0:00:09] Weighted Error Value: White=0.21 (precise) /Black=0.29 (precise)} 1-0

[Event "10th Norway Chess 2022"]
[Site "Stavanger"]
[Date "2022.06.09"]
[Round "8.1"]
[White "Radjabov, Teimour"]
[Black "Wang, Hao"]
[Result "1/2-1/2"]
[ECO "C43"]
[WhiteElo "2753"]
[BlackElo "2744"]
[Annotator "TA"]
[PlyCount "57"]
[EventDate "2022.05.30"]
[EventType "tourn"]
[EventCountry "NOR"]
[SourceTitle "playchess.com"]
[Source "ChessBase"]
[SourceQuality "1"]
[TimeControl "40/7200:0"]

{[%evp 9,57,10,8,0,8,19,12,12,16,11,11,12,11,14,9,9,14,12,8,8,21,16,24,21,16,14,18,16,20,24,14,26,15,0,76,0,0,0,0,0,0,0,0,0,0,0,0,0,0,0]} 1. e4 {[%emt 0:00:05] Huzman,A} e5 {[%emt 0:01:47]} 2. Nf3 {[%emt 0:00:07]} Nf6 {[%emt 0:00:14]} 3. d4 {[%emt 0:07:57]} Nxe4 {[%emt 0:00:28]} 4. Bd3 {[%emt 0:02:39]} Nc6 {[%emt 0:02:45]} 5. dxe5 {[%emt 0:06:50]} Nc5 {[%emt 0:00:31]} 6. Nc3 {[%emt 0:16:52] C43: Petroff Defence: 3 d4.} Nxd3+ {[%emt 0:19:19]} 7. Qxd3 {[%emt 0:00:14]} d6 {[%emt 0:00:03]} 8. Bf4 {[%emt 0:07:02]} dxe5 {[%emt 0:01:44] [#]} 9. Qxd8+ $146 {[%emt 0:09:05]} ({Predecessor:} 9. Nxe5 Qxd3 10. Nxd3 Bd6 11. Nb5 a6 12. Nxd6+ cxd6 13. Bxd6 Bf5 14. O-O-O O-O-O 15. Nf4 {1-0 (35) Rublevsky,S (2671)-Iordachescu,V (2627) Tripoli 2004 CBM 102 [Huzman,A]}) 9... Nxd8 {[%emt 0:01:27]} 10. Bxe5 {[%emt 0:00:24] Nd5 is the strong threat.} Ne6 {[%emt 0:05:14]} 11. O-O-O {[%emt 0:06:32][%cal Ba1d1,Bd1d4,Bd4a4][%mdl 32]} Bd7 {[%emt 0:16:25]} 12. Nd4 {[%emt 0:06:10]} Nxd4 {[%emt 0:00:35]} 13. Rxd4 {[%emt 0:00:34]} O-O-O {[%emt 0:00:49]} 14. Rhd1 {[%emt 0:01:23]} f6 {[%emt 0:08:00]} 15. Bg3 {[%emt 0:00:45]} c6 $1 {[%emt 0:11:01] Prevents Nd5.} 16. Ra4 $36 {[%emt 0:13:05][%mdl 2048] White is more active.} a6 {[%emt 0:16:46]} 17. Rad4 {[%emt 0:01:04] aiming for Na4.} Bc5 {[%emt 0:02:05] [#]} 18. Ne4 $1 {[%emt 0:05:52]} Be7 {[%emt 0:01:32]} 19. Bd6 {[%emt 0:05:04]} Rhe8 {[%emt 0:00:50]} 20. Bxe7 {[%emt 0:00:15]} Rxe7 {[%emt 0:00:05]} 21. Nc5 {[%emt 0:00:02]} b6 {[%emt 0:06:12]} (21... a5 $1 $11) 22. Nxd7 {[%emt 0:10:29] White is more active.} (22. Nxa6 $16 Kb7 23. Nb4) 22... Rexd7 {[%emt 0:00:26] The position is equal.} 23. Rxd7 {[%emt 0:00:04]} Rxd7 $16 {[%emt 0:00:05][%mdl 4096] Endgame KR-KR} 24. Re1 {[%emt 0:00:02]} Kc7 {[%emt 0:01:47]} 25. Re6 {[%emt 0:00:07]} Rd6 {[%emt 0:00:13]} 26. Re7+ {[%emt 0:00:03]} Rd7 {[%emt 0:00:06]} 27. Re6 {[%emt 0:00:08]} Rd6 {[%emt 0:00:08]} 28. Re7+ {[%emt 0:00:03]} Rd7 {[%emt 0:00:04]} 29. Re6 {[%emt 0:00:04] An even fight not without its subleties.  Weighted Error Value: White=0.06 (flawless) /Black=0.06 (flawless)} 1/2-1/2

[Event "10th Norway Chess 2022"]
[Site "Stavanger"]
[Date "2022.06.09"]
[Round "8.1"]
[White "Anand, Viswanathan"]
[Black "Mamedyarov, Shakhriyar"]
[Result "0-1"]
[ECO "C42"]
[WhiteElo "2751"]
[BlackElo "2770"]
[Annotator "TA"]
[PlyCount "43"]
[EventDate "2022.05.30"]
[EventType "tourn"]
[EventCountry "NOR"]
[SourceTitle "playchess.com"]
[Source "ChessBase"]
[SourceQuality "1"]
[TimeControl "40/7200:0"]

{[%evp 9,43,14,15,22,33,6,6,3,20,8,15,4,15,14,18,6,6,9,14,0,0,0,0,0,0,0,10,-5,-10,-17,-4,-4,-4,-18,-16,-1389]} 1. e4 {[%emt 0:00:03]} e5 {[%emt 0:00:05]} 2. Nf3 {[%emt 0:00:10]} Nf6 {[%emt 0:00:11]} 3. Nxe5 {[%emt 0:00:54]} d6 {[%emt 0:00:08]} 4. Nf3 {[%emt 0:00:12]} Nxe4 {[%emt 0:00:07]} 5. Bd3 {[%emt 0:01:06]} Nf6 {[%emt 0:02:58]} 6. O-O {[%emt 0:00:22] C42: Petroff Defence: 3 Nxe5 and unusual White 3rd moves.} Be7 {[%emt 0:00:03]} 7. Re1 {[%emt 0:00:40]} O-O {[%emt 0:00:04] The position is equal.} 8. Bf1 {[%emt 0:00:09]} d5 {[%emt 0:06:13]} 9. d4 {[%emt 0:00:44]} Re8 {[%emt 0:00:05]} 10. c4 {[%emt 0:02:20]} Bg4 {[%emt 0:07:07]} 11. Nc3 {[%emt 0:10:15]} Nc6 {[%emt 0:01:03]} 12. cxd5 {[%emt 0:00:43]} Nxd5 {[%emt 0:00:13]} 13. h3 {[%emt 0:00:39]} Bh5 {[%emt 0:04:08]} 14. a3 {[%emt 0:07:34] [#]} Nxc3 $146 {[%emt 0:07:30]} ({Predecessor:} 14... Qd7 15. g4 Bg6 16. Bg2 Nxc3 17. bxc3 Bd6 18. Be3 Be4 19. c4 b6 20. c5 Bf8 21. Ne5 Qd5 22. Bxe4 Qxe4 23. Nxc6 Qxc6 24. d5 Qa4 25. Qxa4 {1-0 (25) Grischuk,A (2766)-Duda,J (2737) Chess.com INT 2018}) 15. bxc3 {[%emt 0:00:17]} Bd6 {[%emt 0:00:06]} 16. Be3 {[%emt 0:13:20]} Qf6 {[%emt 0:06:29]} 17. Bd3 {[%emt 0:06:56]} h6 {[%emt 0:08:57]} 18. g4 {[%emt 0:01:53]} Bg6 {[%emt 0:01:49] [#] Threatens to win with ...Bxd3.} 19. Kg2 {[%emt 0:03:46]} Bxd3 {[%emt 0:05:04]} 20. Qxd3 {[%emt 0:00:08]} Ne7 {[%emt 0:00:07]} 21. Bd2 {[%emt 0:03:44]} Ng6 {[%emt 0:11:44][%cal Of6f3] Strongly threatening ...Qxf3+!} 22. Qb5 $2 {[%emt 0:03:00][%mdl 8192] Weighted Error Value: White=0.05 (flawless) /Black=0.04 (flawless)} (22. Qf5 $11) 0-1

[Event "10th Norway Chess 2022"]
[Site "Stavanger"]
[Date "2022.06.10"]
[Round "9.1"]
[White "Mamedyarov, Shakhriyar"]
[Black "Radjabov, Teimour"]
[Result "1/2-1/2"]
[ECO "E11"]
[WhiteElo "2770"]
[BlackElo "2753"]
[Annotator "TA"]
[PlyCount "69"]
[EventDate "2022.05.30"]
[EventType "tourn"]
[EventCountry "NOR"]
[SourceTitle "playchess.com"]
[Source "ChessBase"]
[SourceQuality "1"]
[TimeControl "40/7200:0"]

{[%evp 15,69,10,15,0,0,-14,-15,-15,-12,-20,-11,0,-8,-16,0,-4,76,65,60,75,84,56,83,23,35,45,52,0,0,0,0,0,34,20,17,8,8,10,10,22,22,17,45,0,0,0,0,0,0,0,0,0,55,0,0,-18]} 1. d4 {[%emt 0:00:01]} Nf6 {[%emt 0:00:06]} 2. c4 {[%emt 0:00:03]} e6 {[%emt 0:00:14]} 3. Nf3 {[%emt 0:00:04]} d5 {[%emt 0:00:23]} 4. g3 {[%emt 0:00:04]} Bb4+ {[%emt 0:06:44]} 5. Bd2 {[%emt 0:01:10]} Be7 {[%emt 0:00:06]} 6. Bg2 {[%emt 0:00:05]} O-O {[%emt 0:00:19]} 7. O-O {[%emt 0:00:05]} c6 {[%emt 0:01:17]} 8. Qc2 {[%emt 0:00:06]} b6 {[%emt 0:03:38]} 9. Nc3 {[%emt 0:04:31][%cal Bb1c3,Bc3e4,Be4g5][%mdl 32] E11: Bogo-Indian.} dxc4 {[%emt 0:10:24]} 10. e4 {[%emt 0:05:42]} Nbd7 {[%emt 0:12:02]} 11. e5 {[%emt 0:03:26]} Nd5 {[%emt 0:01:06]} 12. Ne4 {[%emt 0:00:09]} Ba6 {[%emt 0:09:39]} 13. Neg5 {[%emt 0:08:23][%csl Gg5][%cal Rc2h7]} g6 {[%emt 0:02:38]} 14. h4 {[%emt 0:09:35] [#]} Kg7 $146 {[%emt 0:15:37]} ({Predecessor:} 14... c5 15. Rad1 Qe8 16. h5 Rd8 17. Qa4 Nb8 18. Qc2 Nd7 19. Qa4 Nb8 20. Qc2 Nd7 {½-½ (20) Beecham,C (2478)-James,A (2400) ICCF email 2020}) 15. h5 {[%emt 0:05:14]} c3 {[%emt 0:09:57] [#]} (15... c5 $11 16. Qe4 c3 17. bxc3 Bxf1 18. Bxf1 cxd4 19. cxd4 Rc8) 16. bxc3 $1 $16 {[%emt 0:00:22]} Bxf1 {[%emt 0:00:05]} 17. Bxf1 {[%emt 0:05:50]} b5 {[%emt 0:05:15]} 18. Qe4 {[%emt 0:12:43]} Qe8 {[%emt 0:13:00]} 19. Bd3 {[%emt 0:06:10] White is more active.} (19. Qh4 $16) 19... Bxg5 $11 {[%emt 0:06:48]} 20. Nxg5 {[%emt 0:05:08]} h6 {[%emt 0:01:44]} 21. hxg6 {[%emt 0:09:08]} fxg6 {[%emt 0:02:04]} 22. Nf3 {[%emt 0:02:28]} N7b6 {[%emt 0:04:56]} 23. Kg2 {[%emt 0:02:38][%cal Od2h6] Black must now prevent Bxh6+!} h5 {[%emt 0:05:37]} (23... Nc4 $2 24. Bxh6+ Kxh6 25. Rh1+ Kg7 26. Ng5 $18) 24. Rh1 {[%emt 0:03:23][%cal Od2h6] aiming for Bh6+!} Qf7 $1 {[%emt 0:00:46]} 25. g4 {[%emt 0:05:54] Hoping for gxh5.} Nc4 {[%emt 0:01:24]} 26. Bg5 {[%emt 0:03:11] Threatens to win with gxh5. Really sharp!} Nxc3 {[%emt 0:02:17]} 27. Bf6+ {[%emt 0:00:12] This bishop pair is nice.} Kg8 {[%emt 0:00:01]} 28. Qe1 {[%emt 0:04:37]} Nd5 {[%emt 0:00:00]} (28... Nxa2 $2 29. Ng5 Qd7 30. Bxg6 Rxf6 31. exf6 $18) 29. Ng5 {[%emt 0:05:46]} Qd7 {[%emt 0:00:01]} (29... Nf4+ $2 30. Kg1 Qd7 31. Bxg6 (31. Qe4 Rxf6 32. exf6 e5 $11) 31... Rxf6 32. exf6 $18) 30. Bxg6 {[%emt 0:06:11] Bh7+ is the strong threat.} Nxf6 {[%emt 0:00:15]} ({Don't play} 30... Nf4+ 31. Kg1 Rxf6 32. exf6 $18) 31. exf6 {[%emt 0:00:12]} Rxf6 {[%emt 0:00:14]} 32. Bh7+ {[%emt 0:02:33]} Kg7 {[%emt 0:00:01] And now ...Qd5+ would win.} (32... Kh8 $2 33. Rxh5 Kg7 34. Bf5 $1 Qd5+ 35. f3 $18) 33. Rxh5 {[%emt 0:00:01][%cal Oh7f5] Strongly threatening Bf5!} Raf8 {[%emt 0:00:07] [#]} (33... Rh8 $11 34. Ne4 Qxd4 35. Nxf6 Qxf6) 34. f3 {[%emt 0:01:09]} ({White should play} 34. Bf5 $1 $14 Qd5+ 35. f3 exf5 36. Rh7+ Kg6 37. Qh4 Ne3+ 38. Kg1 fxg4 {[#]} 39. Ne6 $1 {[%mdl 512]}) 34... Rh8 {[%emt 0:00:10]} 35. Qc3 {[%emt 0:01:01] Weighted Error Value: White=0.15 (very precise) /Black=0.08 (flawless)} (35. Ne4 $5 {[%cal Rh5g5]} Qxd4 36. Nxf6 Qxf6 37. Qe4 $11) 1/2-1/2

[Event "10th Norway Chess 2022"]
[Site "Stavanger"]
[Date "2022.06.10"]
[Round "9.1"]
[White "Vachier-Lagrave, Maxime"]
[Black "Giri, Anish"]
[Result "1/2-1/2"]
[ECO "B30"]
[WhiteElo "2750"]
[BlackElo "2761"]
[Annotator "TA"]
[PlyCount "64"]
[EventDate "2022.05.30"]
[EventType "tourn"]
[EventCountry "NOR"]
[SourceTitle "playchess.com"]
[Source "ChessBase"]
[SourceQuality "1"]
[TimeControl "40/7200:0"]

{[%evp 9,64,11,52,33,34,18,14,18,33,17,28,15,13,8,19,21,19,17,22,12,8,16,6,0,0,6,0,0,0,0,0,0,0,0,0,0,0,0,0,0,0,-10,0,-9,0,-18,-18,-18,-19,-16,-10,-12,-18,-27,-27,-28,-28]} 1. e4 {[%emt 0:00:02]} c5 {[%emt 0:00:03]} 2. Nf3 {[%emt 0:00:05]} Nc6 {[%emt 0:00:03]} 3. Bb5 {[%emt 0:02:58]} e6 {[%emt 0:00:21]} 4. O-O {[%emt 0:00:05]} Nge7 {[%emt 0:00:04]} 5. Re1 {[%emt 0:04:03]} h6 {[%emt 0:00:21] [#]} 6. b3 $146 {[%emt 0:03:37] B30: Sicilian: 2...Nc6 3 Bb5, lines without ...g6.} (6. c3 $5 {[%cal Rd2d4]}) ({Predecessor:} 6. c3 a6 7. Bf1 d5 8. exd5 Nxd5 9. d3 Be7 10. g3 O-O 11. Bg2 b6 12. Nbd2 Bb7 13. Nc4 {1-0 (83) Dragnev,V (2535)-Blanco Acevedo,C (2304) Warsaw 2021}) 6... a6 {[%emt 0:00:19]} 7. Bxc6 {[%emt 0:00:18]} Nxc6 {[%emt 0:00:20]} 8. Bb2 {[%emt 0:00:04] The position is equal.} b5 {[%emt 0:00:46]} 9. Nc3 {[%emt 0:13:08][%cal Oc3d5]} Be7 {[%emt 0:01:31]} 10. a4 {[%emt 0:02:02]} bxa4 {[%emt 0:00:14]} 11. Nxa4 {[%emt 0:01:39]} O-O {[%emt 0:02:06]} 12. d4 {[%emt 0:08:06]} cxd4 {[%emt 0:01:46]} 13. Nxd4 {[%emt 0:04:44]} Bb7 {[%emt 0:00:14]} 14. Nxc6 {[%emt 0:00:27]} Bxc6 {[%emt 0:00:17]} 15. Qd4 {[%emt 0:00:13][%csl Gb2][%cal Rd4g7] [#]} Bf6 {[%emt 0:04:30] A strong pair of Bishops.} 16. Qd3 {[%emt 0:05:36]} Bxb2 {[%emt 0:17:59]} 17. Nxb2 {[%emt 0:00:07][%cal Ba4b2,Bb2d3,Bd3c5][%mdl 32]} f5 {[%emt 0:00:01]} 18. e5 {[%emt 0:08:08]} a5 {[%emt 0:08:51]} 19. Qd2 {[%emt 0:07:48]} Qh4 {[%emt 0:10:25]} 20. f3 {[%emt 0:03:04]} Rfb8 {[%emt 0:00:42]} 21. Qf2 {[%emt 0:02:06]} Qb4 {[%emt 0:15:27]} 22. Nd3 {[%emt 0:00:33]} Qc3 {[%emt 0:00:50]} 23. Qc5 {[%emt 0:00:31]} Qxc5+ {[%emt 0:11:09]} 24. Nxc5 {[%emt 0:00:15]} Kf7 {[%emt 0:05:47]} 25. Ra2 {[%emt 0:03:43]} g5 {[%emt 0:03:53][%cal Bg7g5,Bg5g4][%mdl 32]} 26. Kf2 {[%emt 0:01:19]} Ke7 {[%emt 0:01:33]} 27. h4 {[%emt 0:06:05]} g4 {[%emt 0:09:32]} 28. Nd3 $1 {[%emt 0:00:19]} a4 {[%emt 0:01:17]} 29. bxa4 {[%emt 0:00:34]} Rxa4 {[%emt 0:00:23]} 30. Rxa4 {[%emt 0:00:05]} Bxa4 {[%emt 0:00:03]} 31. c3 {[%emt 0:03:44]} Rc8 {[%emt 0:00:49]} 32. Rc1 {[%emt 0:00:04]} Bb5 {[%emt 0:02:16] Weighted Error Value: White=0.04 (flawless) /Black=0.03 (flawless)} 1/2-1/2